[Event "Eurasia Open Cup 2018"]
[Site "Jekaterienburg"]
[Date "2018.08.04"]
[Round "4"]
[White "Looshnikov, Nikolai"]
[Black "Maletina, Tatiana"]
[Result "0-1"]
[ECO "C01"]
[WhiteElo "2404"]
[BlackElo "2231"]
[Annotator "NA"]
[PlyCount "114"]
[EventDate "2018.08.01"]
[EventType "swiss"]
[EventCountry "RUS"]
[SourceTitle "playchess.com"]
[Source "ChessBase"]
[SourceQuality "1"]
[TimeControl "5400+30"]

1. e4 {[%emt 0:00:00]} e6 {[%emt 0:00:00]} 2. d4 {[%emt 0:00:00]} d5 {[%emt 0:00:00]} 3. Nc3 {[%emt 0:00:00]} Bb4 {[%emt 0:00:00]} 4. exd5 {[%emt 0:00:00]} exd5 {[%emt 0:00:00]} 5. Bd3 {[%emt 0:00:00]} Nf6 {[%emt 0:00:42]} 6. Nge2 {[%emt 0:00:19]} O-O {[%emt 0:00:56]} 7. Bg5 {[%emt 0:01:35]} Be7 {[%emt 0:02:54]} 8. Qd2 {[%emt 0:05:10]} c6 {[%emt 0:07:00]} 9. O-O-O {[%emt 0:01:35]} b5 {[%emt 0:01:29]} 10. Ng3 {[%emt 0:00:48]} Be6 {[%emt 0:05:36]} 11. Rhe1 {[%emt 0:15:46]} Nbd7 {[%emt 0:03:17]} 12. Bf5 {[%emt 0:12:40]} b4 $14 {[%emt 0:14:53]} (12... Ne8 $5 {[%cal Re7g5]} 13. Bxe7 Qxe7 $11) 13. Nb1 {[%emt 0:10:52]} Ne8 {[%emt 0:17:47]} 14. h4 {[%emt 0:04:35]} Nc7 {[%emt 0:02:24]} 15. Bxe7 {[%emt 0:13:38]} Qxe7 {[%emt 0:00:05]} 16. Qf4 {[%emt 0:00:05]} Nf6 {[%emt 0:02:02]} 17. Bd3 {[%emt 0:00:16]} Qd8 {[%emt 0:03:43]} 18. Re5 {[%emt 0:01:56]} Qd6 {[%emt 0:07:07]} 19. Rde1 {[%emt 0:08:40]} Ng4 {[%emt 0:09:38]} 20. Rf5 {[%emt 0:05:55]} Qxf4+ {[%emt 0:00:19]} 21. Rxf4 {[%emt 0:00:01]} Nf6 {[%emt 0:00:11]} 22. Rf3 {[%emt 0:00:57]} a5 {[%emt 0:07:10]} 23. a4 {[%emt 0:02:37]} bxa3 {[%emt 0:04:41]} 24. Nxa3 {[%emt 0:00:50]} Rfb8 {[%emt 0:00:35]} 25. c3 {[%emt 0:09:35]} Rb6 {[%emt 0:00:05]} 26. Rfe3 {[%emt 0:01:19]} Rab8 {[%emt 0:00:29]} 27. R3e2 {[%emt 0:00:15]} Kf8 {[%emt 0:00:44]} 28. Nf5 {[%emt 0:02:09]} g6 {[%emt 0:02:31]} 29. Ne3 {[%emt 0:00:11]} Rb3 {[%emt 0:00:16]} 30. Nd1 {[%emt 0:00:19]} Nce8 {[%emt 0:00:00]} 31. Bc2 {[%emt 0:00:19]} R3b6 {[%emt 0:00:37]} 32. f3 {[%emt 0:01:11]} Nd6 {[%emt 0:00:55]} 33. g4 {[%emt 0:00:10]} h5 {[%emt 0:00:42]} 34. g5 {[%emt 0:00:23]} Nfe8 {[%emt 0:04:07]} 35. Bxg6 {[%emt 0:00:08]} Ng7 {[%emt 0:00:00]} 36. Bc2 {[%emt 0:00:26]} Bf5 {[%emt 0:00:39]} 37. Rh2 {[%emt 0:03:06]} R6b7 {[%emt 0:01:36]} 38. Re5 {[%emt 0:00:18]} Bxc2 {[%emt 0:00:08]} 39. Kxc2 {[%emt 0:00:02]} Ne6 {[%emt 0:01:07]} 40. Re1 {[%emt 0:01:14]} Nf4 {[%emt 0:00:09]} 41. Kd2 {[%emt 0:00:32]} Rxb2+ {[%emt 0:01:36]} 42. Nxb2 {[%emt 0:00:00]} Rxb2+ {[%emt 0:00:04]} 43. Ke3 {[%emt 0:00:49]} Rxh2 {[%emt 0:01:04]} 44. Kxf4 {[%emt 0:00:02]} Ra2 {[%emt 0:02:05]} 45. Nb1 {[%emt 0:00:19]} a4 {[%emt 0:00:26]} 46. c4 {[%emt 0:00:29]} Nxc4 {[%emt 0:00:32]} 47. Nc3 {[%emt 0:00:19]} Ra3 {[%emt 0:00:03]} 48. Rc1 {[%emt 0:00:18]} Kg7 {[%emt 0:00:31]} 49. Kf5 {[%emt 0:01:01]} Rb3 {[%emt 0:00:05]} 50. f4 {[%emt 0:00:22]} a3 {[%emt 0:00:12]} 51. g6 {[%emt 0:00:44]} fxg6+ {[%emt 0:01:15]} 52. Ke6 {[%emt 0:00:04]} Nd2 {[%emt 0:00:56]} 53. f5 {[%emt 0:01:36]} gxf5 {[%emt 0:00:04]} 54. Rg1+ {[%emt 0:00:13]} Kh7 {[%emt 0:00:06]} 55. Kf7 {[%emt 0:00:43]} Rb7+ {[%emt 0:00:31]} 56. Kf8 {[%emt 0:00:12]} Ne4 {[%emt 0:00:11]} 57. Ne2 {[%emt 0:00:36]} Nd6 {[%emt 0:00:04]} 0-1

[Event "Eurasia Open Cup 2018"]
[Site "Jekaterienburg"]
[Date "2018.08.04"]
[Round "4"]
[White "Ivanov, Andrew"]
[Black "Lysenko, Margarita"]
[Result "1/2-1/2"]
[ECO "D78"]
[WhiteElo "2398"]
[BlackElo "2215"]
[Annotator "NA"]
[PlyCount "80"]
[EventDate "2018.08.01"]
[EventType "swiss"]
[EventCountry "RUS"]
[SourceTitle "playchess.com"]
[Source "ChessBase"]
[SourceQuality "1"]
[TimeControl "5400+30"]

1. d4 {[%emt 0:00:00]} Nf6 {[%emt 0:00:12]} 2. c4 {[%emt 0:00:07]} g6 {[%emt 0:00:06]} 3. g3 {[%emt 0:00:13]} Bg7 {[%emt 0:00:19]} 4. Bg2 {[%emt 0:00:04]} O-O {[%emt 0:02:27]} 5. Nf3 {[%emt 0:00:05]} c6 {[%emt 0:00:20]} 6. O-O {[%emt 0:00:07]} d5 {[%emt 0:00:06]} 7. b3 {[%emt 0:00:03]} b6 {[%emt 0:05:54]} 8. Nc3 {[%emt 0:07:30]} Bb7 {[%emt 0:02:35]} 9. Bb2 {[%emt 0:07:32]} Nbd7 {[%emt 0:16:04]} 10. Rc1 {[%emt 0:03:59]} e6 {[%emt 0:08:53]} 11. Qc2 {[%emt 0:10:14]} Qe7 $11 {[%emt 0:14:42]} 12. Nd2 {[%emt 0:09:00]} Rfd8 {[%emt 0:04:58]} 13. Rfd1 {[%emt 0:04:41]} Rac8 {[%emt 0:03:40]} 14. e4 {[%emt 0:01:02]} dxe4 {[%emt 0:01:24]} 15. Ndxe4 {[%emt 0:00:12]} Nxe4 {[%emt 0:01:33]} 16. Nxe4 {[%emt 0:00:06]} Nf6 {[%emt 0:04:32]} 17. Nxf6+ {[%emt 0:11:49]} Bxf6 {[%emt 0:01:59]} 18. c5 {[%emt 0:00:25]} Rd7 {[%emt 0:13:11]} 19. Rd2 {[%emt 0:03:55]} Rcd8 {[%emt 0:03:16]} 20. cxb6 {[%emt 0:01:26]} axb6 {[%emt 0:01:48]} 21. Rcd1 {[%emt 0:06:30]} h5 {[%emt 0:04:14]} 22. h4 {[%emt 0:02:47]} Bg7 {[%emt 0:01:02]} 23. Be4 {[%emt 0:01:53]} Kh7 {[%emt 0:02:31]} 24. Qc4 {[%emt 0:02:36]} f5 {[%emt 0:02:20]} 25. Bf3 {[%emt 0:00:20]} e5 {[%emt 0:00:26]} 26. Bxc6 {[%emt 0:01:42]} Bxc6 {[%emt 0:00:49]} 27. Qxc6 {[%emt 0:00:05]} exd4 {[%emt 0:00:55]} 28. Qf3 {[%emt 0:02:27]} Qe4 {[%emt 0:01:06]} 29. Kg2 {[%emt 0:00:26]} b5 {[%emt 0:00:26]} 30. a3 {[%emt 0:02:36]} Rd6 {[%emt 0:00:56]} 31. Rd3 {[%emt 0:00:30]} R8d7 {[%emt 0:00:25]} 32. R1d2 {[%emt 0:00:33]} Rd5 {[%emt 0:00:26]} 33. Re2 {[%emt 0:00:21]} Qxf3+ {[%emt 0:00:08]} 34. Kxf3 {[%emt 0:00:06]} Rc7 {[%emt 0:00:31]} 35. Red2 {[%emt 0:00:17]} Rcd7 {[%emt 0:00:45]} 36. Rc2 {[%emt 0:01:02]} Re7 {[%emt 0:00:20]} 37. Rcd2 {[%emt 0:00:28]} Red7 {[%emt 0:00:17]} 38. Rc2 {[%emt 0:00:12]} Re7 {[%emt 0:00:08]} 39. Rcd2 {[%emt 0:00:08]} Red7 {[%emt 0:00:07]} 40. Rc2 {[%emt 0:00:09]} Re7 {[%emt 0:00:06]} 1/2-1/2

[Event "Eurasia Open Cup 2018"]
[Site "Jekaterienburg"]
[Date "2018.08.04"]
[Round "4"]
[White "Tomilova, Elena"]
[Black "Matsenko, Sergei"]
[Result "0-1"]
[ECO "A47"]
[WhiteElo "2332"]
[BlackElo "2533"]
[Annotator "ChessBase"]
[PlyCount "116"]
[EventDate "2018.08.01"]
[EventType "swiss"]
[EventCountry "RUS"]
[SourceTitle "playchess.com"]
[Source "ChessBase"]
[SourceQuality "1"]
[TimeControl "5400+30"]

1. d4 {[%emt 0:00:00]} e6 {[%emt 0:00:00]} 2. Nf3 {[%emt 0:00:00]} Nf6 {[%emt 0:00:00]} 3. Bf4 {[%emt 0:00:00]} b6 {[%emt 0:02:27]} 4. e3 {[%emt 0:00:22]} Bb7 {[%emt 0:06:57]} 5. h3 {[%emt 0:00:12]} Bd6 {[%emt 0:00:42]} 6. Bxd6 {[%emt 0:04:10]} cxd6 {[%emt 0:00:09]} 7. Nbd2 {[%emt 0:00:35]} O-O {[%emt 0:04:43]} 8. c3 {[%emt 0:00:02]} d5 {[%emt 0:02:17]} 9. Bd3 {[%emt 0:00:57]} d6 {[%emt 0:00:06]} 10. O-O {[%emt 0:00:17]} Nbd7 {[%emt 0:00:07]} 11. Rc1 {[%emt 0:08:57]} e5 {[%emt 0:02:08]} 12. Bb1 {[%emt 0:00:19]} Re8 {[%emt 0:10:39]} 13. Re1 {[%emt 0:05:25]} Rc8 {[%emt 0:04:03]} 14. Nh2 {[%emt 0:03:24]} h5 {[%emt 0:02:53]} 15. Qf3 {[%emt 0:04:50]} g6 {[%emt 0:07:24]} 16. Qg3 {[%emt 0:02:37]} Ne4 {[%emt 0:05:26]} 17. Nxe4 {[%emt 0:01:38]} dxe4 {[%emt 0:00:26]} 18. f4 {[%emt 0:01:31]} Qf6 {[%emt 0:13:17]} 19. fxe5 {[%emt 0:14:10]} dxe5 {[%emt 0:00:57]} 20. Rf1 {[%emt 0:00:04]} Qe6 {[%emt 0:00:46]} 21. Rcd1 {[%emt 0:01:13]} Kg7 {[%emt 0:11:19]} 22. Rf2 {[%emt 0:17:01]} f5 {[%emt 0:03:59]} 23. Rfd2 {[%emt 0:01:25]} Nf6 {[%emt 0:02:17]} 24. dxe5 {[%emt 0:01:36]} Nd5 {[%emt 0:03:54]} 25. Nf1 {[%emt 0:02:35]} Qxe5 {[%emt 0:00:22]} 26. Qg5 {[%emt 0:00:05]} Rc7 {[%emt 0:10:04]} 27. Ng3 {[%emt 0:01:26]} Kf7 {[%emt 0:01:34]} 28. h4 {[%emt 0:05:28]} Nf6 {[%emt 0:00:37]} 29. Bc2 {[%emt 0:00:39]} Ba6 {[%emt 0:00:55]} 30. Bb3+ {[%emt 0:03:58]} Bc4 {[%emt 0:00:00]} 31. Bxc4+ {[%emt 0:00:52]} Rxc4 {[%emt 0:00:07]} 32. Ne2 {[%emt 0:00:26]} Rc6 {[%emt 0:04:30]} 33. Nf4 {[%emt 0:03:51]} Ng4 {[%emt 0:00:02]} 34. Rd7+ {[%emt 0:09:49]} Re7 {[%emt 0:00:01]} 35. R1d5 {[%emt 0:00:51]} Qf6 {[%emt 0:00:40]} 36. Nh3 {[%emt 0:01:50]} Rxd7 {[%emt 0:00:56]} 37. Rxd7+ {[%emt 0:00:13]} Ke8 {[%emt 0:00:06]} 38. Rd4 {[%emt 0:01:40]} Qxg5 {[%emt 0:00:15]} 39. Nxg5 {[%emt 0:00:09]} Ke7 {[%emt 0:00:35]} 40. Nh3 {[%emt 0:01:39]} Nxe3 {[%emt 0:00:13]} 41. Nf4 {[%emt 0:00:01]} Ng4 {[%emt 0:00:33]} 42. Kf1 {[%emt 0:00:36]} Ne5 {[%emt 0:00:28]} 43. Rd5 {[%emt 0:01:34]} Nc4 {[%emt 0:00:05]} 44. Rb5 {[%emt 0:00:50]} Rd6 {[%emt 0:00:11]} 45. Ke1 {[%emt 0:00:26]} Kd7 {[%emt 0:01:30]} 46. b3 {[%emt 0:00:33]} Na3 {[%emt 0:00:44]} 47. Re5 {[%emt 0:00:24]} Nb1 {[%emt 0:00:33]} 48. Ne2 {[%emt 0:00:53]} Rd3 {[%emt 0:00:41]} 49. c4 {[%emt 0:00:28]} Nc3 {[%emt 0:00:14]} 50. Nf4 {[%emt 0:00:35]} Rd1+ {[%emt 0:00:25]} 51. Kf2 {[%emt 0:00:01]} Rd6 {[%emt 0:00:09]} 52. a4 {[%emt 0:00:23]} a5 {[%emt 0:00:56]} 53. Ke3 {[%emt 0:01:05]} Kc6 {[%emt 0:00:43]} 54. Ne6 {[%emt 0:00:48]} Rd3+ {[%emt 0:00:44]} 55. Kf4 {[%emt 0:00:19]} Kd6 {[%emt 0:00:06]} 56. c5+ {[%emt 0:01:45]} bxc5 {[%emt 0:00:02]} 57. Nxc5 {[%emt 0:00:07]} Ne2+ {[%emt 0:00:06]} 58. Kg5 {[%emt 0:00:05]} Kxe5 {[%emt 0:00:06]} 0-1

[Event "Eurasia Open Cup 2018"]
[Site "Jekaterienburg"]
[Date "2018.08.04"]
[Round "4"]
[White "Tsybikov, Tumen"]
[Black "Makhmutov, Rail"]
[Result "1-0"]
[ECO "B12"]
[WhiteElo "2272"]
[BlackElo "2416"]
[Annotator "NA"]
[PlyCount "53"]
[EventDate "2018.08.01"]
[EventType "swiss"]
[EventCountry "RUS"]
[SourceTitle "playchess.com"]
[Source "ChessBase"]
[SourceQuality "1"]
[TimeControl "5400+30"]

1. e4 {[%emt 0:00:00]} c6 {[%emt 0:00:00]} 2. d4 {[%emt 0:00:39]} d5 {[%emt 0:00:00]} 3. e5 {[%emt 0:00:05]} c5 {[%emt 0:00:05]} 4. dxc5 {[%emt 0:00:30]} e6 {[%emt 0:00:11]} 5. Nf3 {[%emt 0:00:11]} Bxc5 {[%emt 0:00:35]} 6. Bd3 {[%emt 0:00:03]} Nc6 {[%emt 0:00:33]} 7. O-O {[%emt 0:00:40]} f6 {[%emt 0:03:08]} 8. Bf4 {[%emt 0:08:45]} fxe5 {[%emt 0:02:42]} 9. Nxe5 {[%emt 0:00:35]} Nf6 {[%emt 0:00:46]} 10. Nd2 {[%emt 0:05:53]} O-O {[%emt 0:04:21]} 11. Bg3 {[%emt 0:04:15]} Bd4 {[%emt 0:04:47]} 12. Nxc6 {[%emt 0:02:31]} bxc6 {[%emt 0:00:01]} 13. c3 {[%emt 0:00:08]} Bb6 {[%emt 0:00:35]} 14. Nf3 {[%emt 0:00:45]} Nh5 {[%emt 0:12:03]} 15. Qc2 {[%emt 0:07:49]} Nf6 {[%emt 0:07:40]} (15... Nxg3 $11 16. Bxh7+ (16. hxg3 g6 $11) 16... Kh8 17. hxg3 Ba6) 16. Bh4 {[%emt 0:03:17]} Qc7 {[%emt 0:05:17]} 17. Rae1 $16 {[%emt 0:04:05]} (17. Rab1 {[%emt 0:04:05]}) (17. c4 $142) 17... Qf7 {[%emt 0:04:57]} 18. Bg3 {[%emt 0:01:36]} Qe7 {[%emt 0:06:33]} 19. Ne5 {[%emt 0:03:40]} c5 {[%emt 0:06:28]} 20. c4 {[%emt 0:02:19]} Bb7 {[%emt 0:01:09]} 21. Re3 {[%emt 0:12:25]} d4 {[%emt 0:05:16]} 22. Bh4 {[%emt 0:04:46]} Qd6 {[%emt 0:10:35]} 23. Bxf6 {[%emt 0:02:02]} Rxf6 {[%emt 0:00:14]} 24. Bxh7+ {[%emt 0:00:15]} Kf8 {[%emt 0:00:01]} 25. Re2 {[%emt 0:01:26]} Bc7 {[%emt 0:01:02]} 26. f4 {[%emt 0:03:12]} Ke7 {[%emt 0:04:27]} 27. Be4 {[%emt 0:03:31]} 1-0

[Event "Eurasia Open Cup 2018"]
[Site "Jekaterienburg"]
[Date "2018.08.04"]
[Round "4"]
[White "Saunina, Ludmila"]
[Black "Faizrakhmanov, Ramil"]
[Result "1/2-1/2"]
[ECO "A48"]
[WhiteElo "2214"]
[BlackElo "2407"]
[Annotator "NA"]
[PlyCount "87"]
[EventDate "2018.08.01"]
[EventType "swiss"]
[EventCountry "RUS"]
[SourceTitle "playchess.com"]
[Source "ChessBase"]
[SourceQuality "1"]
[TimeControl "5400+30"]

1. Nf3 {[%emt 0:00:00]} Nf6 {[%emt 0:00:00]} 2. e3 {[%emt 0:00:00]} g6 {[%emt 0:01:21]} 3. d4 {[%emt 0:00:19]} Bg7 {[%emt 0:00:22]} 4. Be2 {[%emt 0:00:03]} O-O {[%emt 0:00:36]} 5. O-O {[%emt 0:00:03]} d6 {[%emt 0:01:30]} 6. b3 {[%emt 0:00:44]} Nbd7 {[%emt 0:00:58]} 7. Bb2 {[%emt 0:00:04]} e5 {[%emt 0:01:59]} 8. dxe5 {[%emt 0:02:14] A48: 1 d4 Nf6 2 Nf3 g6: Torre, London and Colle Systems} Ng4 {[%emt 0:00:34]} 9. Nbd2 {[%emt 0:00:41]} Ngxe5 {[%emt 0:01:52]} 10. Qc1 {[%emt 0:04:00]} Re8 {[%emt 0:05:41]} 11. Nc4 {[%emt 0:02:36]} Nxc4 {[%emt 0:02:00]} 12. Bxc4 {[%emt 0:01:07]} Ne5 {[%emt 0:00:48]} 13. Nxe5 $146 {[%emt 0:01:14]} ({Predecessor:} 13. Be2 Bg4 14. Nxe5 Bxe2 15. Re1 Bxe5 16. Rxe2 {0-1 (59) Molina,R (2353)-Marra,E (2290) Santos 2007}) 13... Bxe5 {[%emt 0:00:15]} 14. Bxe5 {[%emt 0:02:53]} Rxe5 {[%emt 0:00:11]} 15. f4 {[%emt 0:01:33]} Re8 {[%emt 0:01:10]} 16. Bd3 {[%emt 0:03:44]} Bd7 {[%emt 0:04:28]} 17. e4 {[%emt 0:05:07]} Qf6 {[%emt 0:00:24]} 18. Qe3 {[%emt 0:02:35]} Re7 {[%emt 0:13:22]} 19. Rae1 {[%emt 0:00:58]} b6 {[%emt 0:01:25]} 20. Qg3 {[%emt 0:04:03]} Rae8 {[%emt 0:02:15]} 21. Re2 $11 {[%emt 0:03:12]} Qd4+ {[%emt 0:07:04]} 22. Qf2 {[%emt 0:07:39]} Qc5 {[%emt 0:00:45]} 23. Qxc5 {[%emt 0:02:12]} bxc5 {[%emt 0:00:08]} 24. Rfe1 {[%emt 0:00:32]} f6 {[%emt 0:01:17]} 25. Kf2 {[%emt 0:00:58]} Bc6 {[%emt 0:02:25]} 26. Re3 {[%emt 0:05:11]} Kf8 {[%emt 0:00:32]} 27. h4 {[%emt 0:01:54]} a5 {[%emt 0:01:05]} 28. a4 {[%emt 0:00:38]} c4 {[%emt 0:04:14]} 29. Bxc4 {[%emt 0:01:24]} Bxe4 {[%emt 0:00:21]} 30. Rc3 {[%emt 0:02:44]} f5 {[%emt 0:06:28]} 31. Bb5 {[%emt 0:02:18]} c6 {[%emt 0:01:50]} 32. Bd3 {[%emt 0:00:44]} Bxd3 {[%emt 0:01:01]} 33. Rxe7 {[%emt 0:00:06]} Kxe7 {[%emt 0:00:06]} 34. Rxd3 {[%emt 0:01:19]} Kd7 {[%emt 0:00:00]} 35. Re3 {[%emt 0:01:38]} Rb8 {[%emt 0:00:39]} 36. Rh3 {[%emt 0:01:46]} Rb4 {[%emt 0:02:22]} 37. g3 {[%emt 0:09:48]} h5 {[%emt 0:01:30]} 38. Rh1 {[%emt 0:00:45]} c5 {[%emt 0:00:36]} 39. Rd1 {[%emt 0:02:04]} Kc6 {[%emt 0:08:25]} 40. Re1 {[%emt 0:06:32]} Kd7 {[%emt 0:05:38]} 41. Rd1 {[%emt 0:01:22]} Re4 {[%emt 0:01:04]} 42. Rd3 {[%emt 0:01:45]} Rb4 {[%emt 0:06:02]} 43. c4 {[%emt 0:01:04]} Rb8 {[%emt 0:00:43]} 44. Ke1 {[%emt 0:00:39]} 1/2-1/2

[Event "Eurasia Open Cup 2018"]
[Site "Jekaterienburg"]
[Date "2018.08.04"]
[Round "4"]
[White "Pastukhov, Leonid"]
[Black "Kardashevskiy, Evgeny"]
[Result "1-0"]
[ECO "B92"]
[WhiteElo "2166"]
[BlackElo "2387"]
[Annotator "NA"]
[PlyCount "69"]
[EventDate "2018.08.01"]
[EventType "swiss"]
[EventCountry "RUS"]
[SourceTitle "playchess.com"]
[Source "ChessBase"]
[SourceQuality "1"]
[TimeControl "5400+30"]

1. e4 {[%emt 0:00:00]} c5 {[%emt 0:00:00]} 2. Nf3 {[%emt 0:00:10]} d6 {[%emt 0:00:12]} 3. d4 {[%emt 0:00:12]} cxd4 {[%emt 0:00:14]} 4. Nxd4 {[%emt 0:00:13]} Nf6 {[%emt 0:00:07]} 5. Nc3 {[%emt 0:00:06]} a6 {[%emt 0:00:11]} 6. Be2 {[%emt 0:00:00]} e5 {[%emt 0:02:05]} 7. Nb3 {[%emt 0:01:34]} Be7 {[%emt 0:00:22]} 8. Be3 {[%emt 0:00:20]} O-O {[%emt 0:00:46]} 9. g4 {[%emt 0:00:36]} Be6 {[%emt 0:00:35]} 10. g5 {[%emt 0:01:25]} Nfd7 {[%emt 0:02:31]} 11. h4 {[%emt 0:01:06]} Nc6 {[%emt 0:00:49]} 12. Qd2 {[%emt 0:00:47]} Rc8 {[%emt 0:05:35]} 13. h5 {[%emt 0:00:44]} Nd4 {[%emt 0:11:09]} 14. h6 {[%emt 0:00:59]} Nxb3 {[%emt 0:02:53]} (14... Nxe2 $11 15. hxg7 {[#]} Nxc3 $1 {[%mdl 512]} 16. gxf8=R+ Nxf8 17. bxc3 Qc7 $11) 15. axb3 {[%emt 0:21:12]} g6 {[%emt 0:14:30]} 16. Rg1 $11 {[%emt 0:01:07]} f6 {[%emt 0:00:14]} 17. gxf6 {[%emt 0:02:47]} Nxf6 {[%emt 0:12:12]} 18. O-O-O {[%emt 0:06:42]} b5 {[%emt 0:00:27]} 19. Kb1 {[%emt 0:01:39]} b4 {[%emt 0:02:44]} 20. Nd5 {[%emt 0:02:05]} Nxe4 {[%emt 0:05:38]} 21. Qxb4 {[%emt 0:01:08]} Nc5 {[%emt 0:00:39]} 22. Bc4 {[%emt 0:00:01]} a5 {[%emt 0:00:39]} 23. Qd2 {[%emt 0:01:54]} Kh8 {[%emt 0:05:52]} 24. Nxe7 {[%emt 0:07:00]} Qxe7 {[%emt 0:01:51]} 25. Qxd6 {[%emt 0:01:07]} Qxd6 {[%emt 0:07:16]} 26. Rxd6 {[%emt 0:06:05]} Bxc4 {[%emt 0:00:15]} 27. bxc4 {[%emt 0:00:32]} Ne4 {[%emt 0:00:43]} 28. Rd5 {[%emt 0:00:10]} Rxc4 {[%emt 0:00:08]} 29. Rxe5 {[%emt 0:00:08]} a4 {[%emt 0:01:23]} 30. Rd1 {[%emt 0:00:32]} Rb8 {[%emt 0:03:13]} 31. Rd4 {[%emt 0:07:32]} Nc3+ {[%emt 0:00:38]} 32. Ka1 {[%emt 0:02:03]} a3 {[%emt 0:01:49]} 33. bxc3 {[%emt 0:04:54]} Rxc3 {[%emt 0:06:46]} 34. Rb4 {[%emt 0:01:06]} Rd8 {[%emt 0:00:15]} 35. Bd4 {[%emt 0:00:26]} 1-0